Cogmind - Beta 15 @@@ ROGUE MODE // 2025.06.08 @ 19:39:12 Player: nado Result: Destroyed by Y-45 Defender with Heavy Assault Rifle Performance ------------- Evolutions (0) 0 Regions Visited (3) 600 Robots Destroyed (23) 115 Value Destroyed (565) 565 Prototype IDs (0) 0 Alien Tech Used (0) 0 Bonus (0) 0 TOTAL SCORE: 1280 Bonus ------- None Cogmind --------- Core Integrity 0/250 Matter 230/300 Energy 155/160 System Corruption 0% Temperature Cool (31) Movement Treading (160) Location -8/Recycling Parts ------- > --- POWER (1) -------- Light Nuclear Core > --- PROPULSION (2) --- Light Treads Light Treads > --- UTILITY (2) ------ Large Storage Unit Improved Light Armor Plating > --- WEAPON (2) ------- Subdweller Laser Light Assault Rifle > --- INVENTORY (15) --- Subdweller Power Source Light Treads Light Treads Light Treads Light Treads Light Treads Subdweller Monowheel Improved Heat Sink Light Armor Plating Particle Cannon Particle Cannon Light Assault Rifle Grenade Launcher Rocket Launcher Scythe Peak State ------------ > --- POWER ------------ Light Nuclear Core > --- PROPULSION ------- Light Treads Light Treads > --- UTILITY ---------- Large Storage Unit Improved Light Armor Plating > --- WEAPON ----------- Subdweller Laser Light Assault Rifle > --- INVENTORY -------- Subdweller Power Source Subdweller Power Source Light Treads Light Treads Light Treads Subdweller Monowheel Improved Heat Sink Light Armor Plating Assault Rifle Light Assault Rifle Grenade Launcher Rocket Launcher Scythe [Rating: 14] Favorites ----------- Power Light Ion Engine Engine Light Ion Engine Power Core Light Nuclear Core Propulsion Light Treads Treads Light Treads Leg Aluminum Leg Utility Large Storage Unit Device Improved Heat Sink Storage Large Storage Unit Protection Light Armor Plating Weapon Light Assault Rifle Energy Gun Subdweller Laser Ballistic Gun Light Assault Rifle Launcher Grenade Launcher Build | -11 -10 -10 -8 ------- Run | Yrd Mat Sub Rec Slots Evolved . | . . . . Power . | . . . . Propulsion . | . . . . Utility . | . . . . Weapon . | . . . . Parts Attached 22 | . 10 11 1 Power 3 | . 1 2 . Engine 2 | . 1 1 . Core 1 | . . 1 . Reactor . | . . . . Propulsion 5 | . 3 2 . Treads 5 | . 3 2 . Leg . | . . . . Wheel . | . . . . Hover . | . . . . Flight . | . . . . Utility 7 | . 4 2 1 Device 1 | . 1 . . Storage 2 | . 2 . . Processor . | . . . . Hackware . | . . . . Protection 4 | . 1 2 1 Artifact . | . . . . Weapon 7 | . 2 5 . Energy Gun 1 | . . 1 . Energy Cannon . | . . . . Ballistic Gun 5 | . 2 3 . Ballistic Cannon . | . . . . Launcher 1 | . . 1 . Special Weapon . | . . . . Impact Weapon . | . . . . Slashing Weapon . | . . . . Piercing Weapon . | . . . . Special Melee Weapon . | . . . . Unidentified Prototypes . | . . . . Parts Lost 7 | . . 7 . Power 1 | . . 1 . Propulsion 2 | . . 2 . Utility 2 | . . 2 . Weapon 2 | . . 2 . Highest Loss Streak 3 | . . 3 . To Critical Strikes . | . . . . Average Backups 11 | . 10 13 13 Power 1 | . 1 2 1 Propulsion 4 | . 4 5 4 Utility 1 | . 1 2 1 Weapon 3 | . 3 3 5 Tool/Special . | . . . . Unused Backups 25 | . 13 . 12 Power 3 | . 2 . 1 Propulsion 13 | . 7 . 6 Utility 1 | . 1 . . Weapon 8 | . 3 . 5 Tool/Special . | . . . . Average Slot Usage (%) 97 | . 98 93 100 Engine 10 | . 14 10 . Core 2 | . . . 14 Treads 26 | . 27 24 28 Storage 14 | . 14 14 14 Protection 12 | . 10 14 14 Energy Gun 3 | . . 1 14 Ballistic Gun 23 | . 27 20 14 Launcher 1 | . . 5 . Peak Build Rating 14 | . 10 11 14 Average Rating 9 | . 7 9 13 On Entrance 7 | 6 6 8 11 Naked Turns . | . . . . Heaviest Build 35 | 12 31 35 33 Greatest Support 40 | 20 40 40 40 Greatest Overweight (x) 1 | . . 1 . Average Overweight (x) . | . . . . Largest Inventory Capacity 15 | . 15 15 15 Average Capacity 13 | . 12 15 15 Most Carried 15 | . 13 15 15 Average Carried 11 | . 10 13 13 Final Capacity 15 | 8 15 15 15 Final Carried 15 | 6 13 10 15 Class Distribution -------------------- 88% | Mutant 11% | Commander-Mutant Dominant Class ---------------- Mutant | -10/Materials Mutant | -10/Subcaves Commander-Mutant | -8/Recycling Resources | -11 -10 -10 -8 ----------- Run | Yrd Mat Sub Rec Matter Collected 673 | 200 182 115 176 Remotely . | . . . . Salvage Created 719 | . 406 107 206 Parts 44 | . 25 10 9 Haulers Intercepted 2 | . 2 . . Recyclers Shooed 2 | . . . 2 Parts Field Recycled . | . . . . Retrieved Matter . | . . . . Parts Self-Destructed 6 | . . 6 . Prevented . | . . . . Kills | -11 -10 -10 -8 ------- Run | Yrd Mat Sub Rec Combat Hostiles Destroyed 18 | . 9 6 3 Guns 14 | . 9 2 3 AOE 4 | . . 4 . Classes Destroyed 8 | . 3 2 3 Hauler 2 | . 2 . . Recycler 1 | . . . 1 Turret 2 | . . 2 . Swarmer 7 | . 3 4 . Grunt 6 | . 6 . . Protector 1 | . . . 1 Sentry 2 | . . . 2 Subdweller 2 | . . 2 . Best Kill Streak 4 | . 3 4 2 Combat Bots Only 4 | . 3 4 1 Max Kills in Single Turn 3 | . 1 3 1 Gunslinging . | . . . . Exploded 3 | . . 3 . Melee . | . . . . Uniques/NPCs Destroyed . | . . . . Combat | -11 -10 -10 -8 -------- Run | Yrd Mat Sub Rec Hostile Shots Fired 192 | . 40 146 6 Missed 57 | . 10 47 . Hits 135 | . 30 99 6 Projectile 135 | . 30 99 6 Critical Strikes 4 | . 2 . 2 Damage Taken 1495 | . 368 1061 66 Core 253 | . 91 150 12 Absorbed by Shields 19 | . . . 19 Core Remaining (%) 100 | 100 . . . Volleys Fired 84 | . 26 49 9 Largest 2 | . 2 2 2 Hottest 80 | . 40 80 80 Shots Fired 143 | . 52 73 18 Gun 128 | . 52 58 18 Cannon . | . . . . Launcher 15 | . . 15 . Special . | . . . . Kinetic 108 | . 52 47 9 Thermal 20 | . . 11 9 Explosive 15 | . . 15 . Electromagnetic . | . . . . Robot Hit Streak 23 | . 22 23 9 Robot Miss Streak 4 | . 1 1 4 Penetration Max . | . . . . Secondary Targets 1 | . . 1 . Max Gunslinging Chain 1 | . . 1 . Shots Hit Robots 91 | . 43 38 10 Core Hits 43 | . 19 19 5 Critical Kills . | . . . . Critical Parts Destroyed . | . . . . Critical Strikes . | . . . . Melee Attacks . | . . . . Impact . | . . . . Slashing . | . . . . Piercing . | . . . . Sneak Attacks . | . . . . Combat Hostiles . | . . . . Follow-up Attacks . | . . . . Damage Inflicted 1360 | . 527 663 170 Guns 1093 | . 504 430 159 Cannons . | . . . . Explosions 233 | . . 233 . Melee . | . . . . Ramming 34 | . 23 . 11 Kinetic 826 | . 504 300 22 Thermal 267 | . . 130 137 Explosive 233 | . . 233 . Electromagnetic . | . . . . Impact . | . . . . Slashing . | . . . . Piercing . | . . . . Highest Corruption . | . . . . Average Corruption . | . . . . Corruption Purged . | . . . . Corruption Blocked . | . . . . Overload Shots . | . . . . Overflow Damage . | . . . . Projectiles . | . . . . Explosions . | . . . . Melee . | . . . . Knockbacks . | . . . . Impact . | . . . . Kinetic . | . . . . Secondary . | . . . . Self-Inflicted Damage 61 | . . 61 . Shots 4 | . . 4 . Rammed 4 | . 3 . 1 Targets Rammed 4 | . 3 . 1 Kicked . | . . . . Crushed . | . . . . Highest Temperature 160 | . 33 45 160 Average Temperature 37 | . 8 17 66 Received Heat Transfer 778 | . 225 504 49 Siege Activations . | . . . . Martial Activations . | . . . . Shielding Activations . | . . . . Robots Disrupted . | . . . . Combat Hostiles . | . . . . Robots Corrupted . | . . . . Combat Hostiles . | . . . . Parts Fried . | . . . . Impact Corruptions . | . . . . Robots Melted . | . . . . Combat Hostiles . | . . . . Parts Melted . | . . . . Heat Transferred 319 | . . 150 169 Parts Sabotaged . | . . . . Parts Stolen . | . . . . Parts Stripped . | . . . . Power Chain Reactions . | . . . . Alert | -11 -10 -10 -8 ------- Run | Yrd Mat Sub Rec Maximum Alert Level . | . . . . Low Security (%) 100 | . 100 . 100 Level 1 . | . . . . Level 2 . | . . . . Level 3 . | . . . . Level 4 . | . . . . Level 5 . | . . . . High Security . | . . . . Max Security . | . . . . Peak Influence 181 | . 83 . 181 Initial 181 | . . . 181 Average 31 | . 18 . 71 Influence Increases 879 | . 302 525 52 Destroy 0b10 Robot/C 340 | . 180 120 40 Destroy 0b10 Robot/NC 20 | . 10 . 10 Destroy Leader 54 | . 54 . . Allied During Kill 2 | . . . 2 Successful Hack 28 | . 28 . . Select Force Hacks 30 | . 30 . . Lose Combat Pursuer 405 | . . 405 . Influence Decreases 867 | . 302 146 419 Entered New Map 198 | . . . 198 Time Decay 619 | . 302 96 221 Lost Part 50 | . . 50 . Squads Dispatched 2 | . 2 . . Investigation 1 | . 1 . . Extermination . | . . . . Reinforcement 1 | . 1 . . Assault . | . . . . Garrison . | . . . . Intercept . | . . . . Searches Triggered . | . . . . Construction Impeded . | . . . . Haulers Reinforced . | . . . . Active Scanning Responses . | . . . . Cargo Convoy Interrupts . | . . . . Stealth | -11 -10 -10 -8 --------- Run | Yrd Mat Sub Rec Distress Signals 4 | . 4 . . Communications Jammed . | . . . . Distress Signals . | . . . . Times Spotted 46 | . 22 19 5 Peak Tracking Total 6 | . 4 6 2 Tactical Retreats 7 | . . 7 . Traps | -11 -10 -10 -8 ------- Run | Yrd Mat Sub Rec Traps Triggered . | . . . . Indirectly . | . . . . Trap Hack Attempts . | . . . . Triggered . | . . . . Disarmed . | . . . . Reprogrammed . | . . . . Reused . | . . . . Traps Extracted . | . . . . Installed . | . . . . Triggered . | . . . . Machines | -11 -10 -10 -8 ---------- Run | Yrd Mat Sub Rec Machines Disabled 2 | . . 2 . Max in Single Turn 1 | . . 1 . Machines Repaired . | . . . . Machines Dismantled . | . . . . Machines Sabotaged . | . . . . Overloaded Fab Kills . | . . . . Hacking | -11 -10 -10 -8 --------- Run | Yrd Mat Sub Rec Machines Accessed 7 | . 6 . 1 Terminals 6 | . 5 . 1 Fabricators . | . . . . Repair Stations . | . . . . Recycling Units 1 | . 1 . . Scanalyzers . | . . . . Garrison Access . | . . . . Total Hacks 20 | . 18 . 2 Successful 11 | . 11 . . Failed 9 | . 7 . 2 Catastrophic 2 | . 1 . 1 Database Lockouts . | . . . . Manual 19 | . 19 . . Terminals 19 | . 17 . 2 Fabricators . | . . . . Repair Stations . | . . . . Recycling Units 1 | . 1 . . Scanalyzers . | . . . . Garrison Access . | . . . . Terminal Hacks 2 | . 2 . . Robot Analysis 2 | . 2 . . Fabricator Hacks . | . . . . Repair Station Hacks . | . . . . Recycling Unit Hacks . | . . . . Scanalyzer . | . . . . Garrison Access Hacks . | . . . . Unauthorized Hacks 9 | . 9 . . Terminals 8 | . 8 . . Botnet 3 | . 3 . . Skim 5 | . 5 . . Fabricators . | . . . . Repair Stations . | . . . . Recycling Units 1 | . 1 . . Tunnel 1 | . 1 . . Scanalyzers . | . . . . Garrison Access . | . . . . Data Cores Recovered . | . . . . Used . | . . . . Hacking Detections 6 | . 5 . 1 Full Trace Events 1 | . . . 1 Feedback Events . | . . . . Feedback Blocked . | . . . . Robot Schematics Acquired . | . . . . Robots Built . | . . . . Authchips . | . . . . Time . | . . . . Total Robot Build Rating . | . . . . Part Schematics Acquired . | . . . . Parts Built . | . . . . Authchips . | . . . . Time . | . . . . Total Part Build Rating . | . . . . Parts Repaired . | . . . . Time . | . . . . Parts Recycled . | . . . . Recycled Matter . | . . . . Retrieved Matter . | . . . . Retrieved Components . | . . . . Parts Scanalyzed . | . . . . Part Schematics Acquired . | . . . . Parts Damaged . | . . . . Bothacking | -11 -10 -10 -8 ------------ Run | Yrd Mat Sub Rec Used RIF Installer . | . . . . Robots Hacked . | . . . . Non-combat . | . . . . Combat . | . . . . Robot Hacks Applied . | . . . . Relay Couplers Released . | . . . . Fabnet Peak Effective % . | . . . . Robots Rewired 7 | . . . 7 Allies Hacked . | . . . . Hacks Repelled . | . . . . Allies | -11 -10 -10 -8 -------- Run | Yrd Mat Sub Rec Total Allies 7 | . . . 7 Largest Group 7 | . . . 7 Highest-Rated Group 87 | . . . 87 Highest-Rated Ally 27 | . . . 27 Total Orders . | . . . . Ally Attacks 10 | . . . 10 Total Damage 112 | . . . 112 Kills . | . . . . Allies Corrupted . | . . . . Allies Melted . | . . . . Intel | -11 -10 -10 -8 ------- Run | Yrd Mat Sub Rec Active Infowar (turns) . | . . . . Robot Analysis Total 2 | . 2 . . Derelict Logs Recovered . | . . . . Drone Launches . | . . . . Drone Recoveries . | . . . . Exploration | -11 -10 -10 -8 ------------- Run | Yrd Mat Sub Rec Turns Passed 3093 | . 1612 946 535 Spaces Moved 1281 | 1 555 465 260 Core . | . . . . Treads 1265 | . 540 465 260 Legs 16 | 1 15 . . Wheels . | . . . . Hover . | . . . . Flight . | . . . . Fastest Speed 120 | 120 120 160 160 Average Speed 164 | 120 158 172 160 Slowest Speed 240 | 120 160 240 160 Overloaded Moves . | . . . . Propulsion Burnouts . | . . . . Robots Hopped . | . . . . Potential Cave-ins . | . . . . Cave-ins Triggered . | . . . . Exploration Rate (%) 39 | 2 90 23 41 Regions Visited 3 Branch Regions 2 Pre-discovered Areas 1 | . 1 . . Known Exits Taken 1 | . 1 . . Unknown Exits Taken 2 | 1 . 1 . Scrap Searched . | . . . . Spaces Dug . | . . . . Terrain Destroyed 70 | . . 70 . Melee . | . . . . Projectile 1 | . . 1 . AOE 69 | . . 69 . Terrain Rammed . | . . . . Walls Destroyed . | . . . . Machines Disabled . | . . . . Actions | -11 -10 -10 -8 --------- Run | Yrd Mat Sub Rec Total 2151 | . 1243 541 367 Wait 642 | . 621 7 14 Move 1278 | . 554 464 260 Hop . | . . . . Pick Up 22 | . 12 2 8 Fast Attach 6 | . 4 2 . Attach 12 | . 2 10 . Detach 9 | . 5 4 . Swap 7 | . 4 2 1 Drop 17 | . 12 1 4 Fire 84 | . 26 49 9 Melee . | . . . . Ram . | . . . . Kick . | . . . . Crush 4 | . 3 . 1 Escape Stasis . | . . . . Rewire 70 | . . . 70 Trap . | . . . . Miscellaneous . | . . . . Route ------- -11/Scrapyard -10/Materials (discovered 6 exits: *Mat x3 / [*Min x2] / *Sub) -10/Subcaves (discovered 2 exits: [*Mat] / *Rec) -8/Recycling History --------- Turn | Location | Event 1 | -11/Scrapyard | Discovered new exit (range 0) 1 | -11/Scrapyard | Entered Materials 317 | -10/Materials | Build established: Mutant 376 | -10/Materials | Discovered new exit (range 7) 556 | -10/Materials | Discovered new exit (range 11) 1108 | -10/Materials | Discovered new exit (range 7) 1261 | -10/Materials | Discovered new exit (range 12) 1328 | -10/Materials | Identified exit to Subcaves 1328 | -10/Materials | Identified exit to Materials 1387 | -10/Materials | Learned 2 Materials zone layouts 1437 | -10/Materials | Loaded intel: 13 trap records 1476 | -10/Materials | Loaded intel: 8 terminal locations 1507 | -10/Materials | Learned 4 Materials zone layouts 1597 | -10/Materials | Learned location of 3 exits from Materials 1613 | -10/Materials | Entered Subcaves 1614 | -10/Subcaves | Approached by a straggling Scientist 1660 | -10/Subcaves | Discovered new exit (range 15) 1728 | -10/Subcaves | Core integrity fell below 50% 2294 | -10/Subcaves | Core integrity fell below 20% 2317 | -10/Subcaves | A swath of the cavern ceiling suddenly collapsed 2415 | -10/Subcaves | Shifting Twisted Machinery released Piercing Trap 2417 | -10/Subcaves | Shifting Twisted Machinery released Sub. Laser 2500 | -10/Subcaves | Discovered new exit (range 13) 2559 | -10/Subcaves | Lost 3 parts (1n1u1w) 2559 | -10/Subcaves | Entered Recycling 2560 | -8/Recycling | Met a Zionite searching for Scraptown 3029 | -8/Recycling | Build established: Commander-Mutant 3094 | -8/Recycling | Destroyed by Y-45 Defender with Heavy Assault Rifle Last Messages --------------- 02878_ R-06 Scavenger collects Heat Sink. 02882_ R-06 Scavenger collects Broken Sub. Power Source. 02898_ R-06 Scavenger inserts Imp. Ion Engine into recycling unit. 02901_ R-06 Scavenger inserts Heat Sink into recycling unit. 02904_ R-06 Scavenger inserts Broken Sub. Power Source into recycling unit. 02907_ R-06 Scavenger inserts Com. Wheel into recycling unit. 02912_ Connecting with Terminal... 02912_ Current location identified: Recycling 02928_ Slammed into R-06 Scavenger. 03002_ I-25 Savior suffers critical hit (Burn). 03003_ I-25 Savior destroyed. 03005_ R-06 Scavenger collects Remote Shield. 03026_ R-06 Scavenger inserts Sml. Storage Unit into recycling unit. 03029_ R-06 Scavenger inserts Assault Rifle into recycling unit. 03051_ Acquired 54 matter. 03073_ Critical hit (Burn: +29). 03076_ Y-45 Defender destroyed. 03077_ R-06 Scavenger collects Beam Rifle. 03080_ R-06 Scavenger collects Imp. Ion Engine. Map ----- +----------------------------------------------------+ | ?????????????????????????????????????????????????? | | ?????????????????????????????????????????????????? | | ?????????????????????????????????????????????????? | | ?????????????????????????????????????????????????? | | ?????????????????????????????????????????????????? | | ?????????????????????????????????????????????????? | | ?????????????????????????????????????????????????? | | ??###########????????????#???????????????????????? | | ### ! #???????????# #T?????????????????????? | | # ! #??????????# ?????????????????????? | | # ! #?????????? ?????????????????????? | | # #??????????= ?????????????????????? | | # ! #??????????= #?????????????????????? | | # !! !#??????????# r#?????????????????????? | | + !! !#??????????# %#?????????????????????? | | # ! #??????????# #?????????????????????? | | ###########??????????# r #?????????????????????? | | ######?#####??#####??#r #?????????????????????? | | ##"""#?# ==#??#"""#?##r ##????????????????????? | | #"Y"###= =####"Y"### % #????????????????????? | | iY #????????????????????? | | r #????????????????????? | | % a #????????????????????? | | #################### #????????????????????? | | ##?????????????########/#########??????????????? | | #??????????????# @ #??????????????? | | ##########?????# = u [ #??????????????? | | # #?????# r #??????????????? | | # #?????# ! u #??????????????? | | / ]/#?????# ! #??????????????? | | # #?????# ! ] #??????????????? | | # #?????# /[ #??????????????? | | / #?????# %! ] / + ?????????????? | | # ! #?????# % ] # #????????????? | | # / #?????##################?#????????????? | | # !#?????????????????????????????????????? | | ##########?????????????????????????????????????? | | #??????????????????????????????????????????????? | | ###????????????????????????????????????????????? | | !!#????????????????????????????????????????????? | | !!#????????????????????????????????????????????? | | !!#??##????????????????????????????????????????? | | ##### ####?????????????????????????????????????? | | # #?????????????????????????????????????? | | # #?????????????????????????????????????? | | # #?????????????????????????????????????? | | # #?????????????????????????????????????? | | # ##????????????????????????????????????? | | # #????????????????????????????????????? | | + #?????????????????????????????????????? | +----------------------------------------------------+ Best States ------------- Heat Dissipation 39 Energy Generation 15 Energy Capacity 250 Matter Stores 300 Matter Capacity 300 Sight Range 16 Terrain Scan Density 10 Armor Coverage 150 Evasion (%) 50 Recoil Reduction 2 Item Schematics ----------------- None Robot Schematics ------------------ None Fabricated ------------ Nothing Repaired ---------- Nothing Alien Tech Used ----------------- None Achievements -------------- None Challenges ------------ None Game ------ Seed TerrabombHugeHumpback Manual? 0 Play Time 00:22:16 Cumulative 155.8 hours Start 2025.06.08 @ 19:17:12 End 2025.06.08 @ 19:39:12 Sessions 1 Manual Loads 0 Difficulty Rogue Special Mode None Game No. 83 Rogue 83 Adventurer 0 Explorer 0 Win Type - Total 4 Types 3/0/1/0/0/0/0/0/0/0 Lore% 54 Gallery% 43 Achievement% 45 Wizard Run 0 Options --------- Layout 0 ASCII 0 Keyboard 1 Movement Vi Keybinds 0 Fullscreen 2 Font 24/Terminus Map View 76x50 Zoom Use 0% Tactical HUD 1 Map Filters NONE Filters NONE Steam 1 RUN: a9799418-d43d-481e-a4a9-bb2d475ded56